bitfinex/quotes_SOLUSD_20250518
["timestamp","ask_amount","ask_price","bid_price","bid_amount"]
[1747577073893,20.69639908,172.79,172.76,20.0]
[1747577074279,18.64964886,172.78,172.76,20.0]
[1747577075100,31.80768419,172.78,172.76,20.0]
[1747577075813,37.5956192,172.78,172.76,20.0]
[1747577076108,24.43758387,172.78,172.76,20.0]
[1747577076305,7.53820708,172.79,172.76,20.0]
[1747577076695,5.78740708,172.79,172.76,20.0]
[1747577077210,18.94544241,172.79,172.76,20.0]
[1747577079277,13.15803533,172.78,172.76,20.0]
[1747577080087,13.15803533,172.77,172.76,20.0]
[1747577080287,13.15803533,172.78,172.76,20.0]
[1747577080806,18.94574951,172.78,172.76,20.0]
[1747577081198,5.78771418,172.78,172.76,20.0]
[1747577081394,18.94574951,172.78,172.76,20.0]
[1747577081796,13.15803533,172.77,172.76,20.0]
[1747577082629,18.94607723,172.77,172.76,20.0]
[1747577083342,37.59572609,172.77,172.76,20.0]
[1747577093046,24.43769076,172.77,172.76,20.0]
[1747577093245,37.59572609,172.77,172.76,20.0]
[1747577098436,24.43769076,172.77,172.76,20.0]
[1747577098634,37.59572609,172.77,172.76,20.0]
[1747577101757,13.15803533,172.77,172.76,20.0]
[1747577103157,18.94607723,172.77,172.76,20.0]
[1747577103623,24.43769076,172.77,172.76,20.0]
[1747577103832,37.59572609,172.77,172.76,20.0]
[1747577104026,5.7880419,172.77,172.76,20.0]
[1747577104226,18.94607723,172.77,172.76,20.0]
[1747577104422,5.7880419,172.77,172.76,20.0]
[1747577104657,18.94607723,172.77,172.76,20.0]
[1747577104833,37.59572609,172.77,172.76,20.0]
[1747577106840,52.06583085,172.77,172.66,26.0]
[1747577107035,38.90779552,172.77,172.66,26.0]
[1747577107236,13.15803533,172.72,172.66,26.0]
[1747577107826,38.90779552,172.77,172.66,26.0]
[1747577108051,18.94799528,172.72,172.66,26.0]
[1747577108248,5.78995995,172.72,172.66,26.0]
[1747577108444,18.94799528,172.72,172.66,26.0]
[1747577109056,13.15803533,172.71,172.65,1.613]
[1747577109362,13.15803533,172.7,172.65,1.613]
[1747577109533,13.15803533,172.69,172.65,1.613]
[1747577110126,18.94894718,172.69,172.65,1.613]
[1747577111259,13.15803533,172.68,172.63,26.0]
[1747577111638,18.94894718,172.69,172.63,26.0]
[1747577112161,13.15803533,172.68,172.63,26.0]
[1747577112969,13.15803533,172.68,172.64,3.27580807]
[1747577113184,13.15803533,172.67,172.64,3.27580807]
[1747577113461,18.94894718,172.69,172.64,3.27580807]
[1747577113864,13.15803533,172.72,172.64,3.27580807]
[1747577114165,13.15803533,172.71,172.64,3.27580807]
[1747577114663,13.15803533,172.71,172.63,26.0]
[1747577115861,5.79038795,172.7,172.63,26.0]
[1747577116267,5.79011574,172.71,172.63,26.0]
[1747577117072,18.94815107,172.71,172.63,26.0]
[1747577117984,5.79011574,172.71,172.63,26.0]
[1747577118277,18.94815107,172.71,172.63,26.0]
[1747577118458,13.15803533,172.7,172.63,26.0]
[1747577118772,13.15803533,172.69,172.63,26.0]
[1747577120365,5.79011574,172.71,172.63,26.0]
[1747577120560,13.15803533,172.7,172.63,26.0]
[1747577121465,18.94851607,172.7,172.63,26.0]
[1747577122371,5.79048074,172.7,172.63,26.0]
[1747577123752,18.94812335,172.71,172.63,26.0]
[1747577123952,18.94812335,172.71,172.64,3.27210076]
[1747577125784,13.15803533,172.7,172.64,3.27210076]
[1747577125987,13.15803533,172.7,172.65,3.27210076]
[1747577127188,37.59840745,172.69,172.64,3.27210076]
[1747577127987,13.15803533,172.68,172.64,3.27210076]
[1747577128283,5.79139398,172.67,172.64,3.27210076]
[1747577128654,5.79139398,172.67,172.62,3.27210076]
[1747577129574,5.79114136,172.68,172.62,3.27210076]
[1747577131157,13.15803533,172.67,172.62,3.27210076]
[1747577132379,5.79114136,172.68,172.62,3.27210076]
[1747577132380,24.44047153,172.69,172.62,3.27210076]
[1747577132568,13.15803533,172.68,172.62,3.27210076]
[1747577132881,18.94917588,172.68,172.62,3.27210076]
[1747577133584,18.94917588,172.68,172.61,27.6534]
[1747577133982,18.94917588,172.68,172.61,26.0]
[1747577134193,18.94946826,172.67,172.61,26.0]
[1747577134494,18.64964886,172.66,172.54,2.94544633]
[1747577134673,13.15803533,172.63,172.55,25.24]
[1747577134878,13.15803533,172.63,172.58,26.0]
[1747577135170,13.15803533,172.64,172.58,26.0]
[1747577135377,13.15803533,172.64,172.59,3.27870887]
[1747577135670,13.15803533,172.62,172.59,3.27870887]
[1747577136090,13.15803533,172.63,172.59,3.27870887]
[1747577136270,18.9508368,172.63,172.59,3.27870887]
[1747577136471,13.15803533,172.63,172.59,3.27870887]
[1747577137075,13.15803533,172.63,172.57,26.0]
[1747577139487,13.15803533,172.61,172.55,26.0]
[1747577140192,13.15803533,172.62,172.55,26.0]
[1747577140402,13.15803533,172.61,172.55,26.0]
[1747577140801,13.15803533,172.62,172.55,26.0]
[1747577140964,13.15803533,172.61,172.56,26.0]
[1747577141163,13.15803533,172.62,172.56,26.0]
[1747577142886,18.95114144,172.62,172.56,26.0]
[1747577144278,13.15803533,172.62,172.56,26.0]
[1747577144483,6.6142,172.65,172.56,26.0]
[1747577144694,13.15803533,172.64,172.56,26.0]
[1747577145072,13.15803533,172.63,172.56,26.0]
[1747577147089,13.15803533,172.64,172.57,3.27444103]
[1747577148675,5.79214953,172.65,172.58,3.27444103]
[1747577148877,13.15803533,172.64,172.58,3.27444103]
[1747577149994,13.15803533,172.64,172.57,3.27444103]
[1747577150205,5.79172941,172.66,172.57,3.27444103]
[1747577150382,13.15803533,172.64,172.57,3.27444103]
[1747577150582,13.15803533,172.62,172.57,3.27444103]
[1747577151999,5.79281139,172.63,172.57,3.27444103]
[1747577152200,18.95084672,172.63,172.57,3.27444103]
[1747577152400,13.15803533,172.63,172.57,3.27444103]
[1747577153779,18.95086963,172.63,172.57,3.27444103]
[1747577155613,18.64964886,172.65,172.57,3.27444103]
[1747577155995,18.64964886,172.65,172.56,26.0]
[1747577156311,5.79172941,172.66,172.56,26.0]
[1747577156487,18.94976474,172.66,172.56,26.0]
[1747577156892,13.15803533,172.65,172.56,26.0]
[1747577157103,5.79172941,172.66,172.57,3.27593683]
[1747577157305,13.15803533,172.65,172.57,3.27593683]
[1747577157507,18.94976474,172.66,172.57,3.27593683]
[1747577158623,18.95018991,172.65,172.58,3.27593683]
[1747577160323,18.95018991,172.65,172.57,3.27593683]
[1747577160730,18.94985071,172.66,172.57,3.27593683]
[1747577160904,13.15803533,172.66,172.57,3.27593683]
[1747577161110,37.59918532,172.67,172.57,3.27593683]
[1747577162118,13.15803533,172.66,172.57,3.27593683]
[1747577162302,18.94985919,172.66,172.57,3.27593683]
[1747577162623,13.15803533,172.65,172.57,3.27593683]
[1747577164525,18.94985919,172.66,172.57,3.27593683]
[1747577164721,18.94985919,172.66,172.58,3.27593683]
[1747577165827,18.95012413,172.65,172.58,3.27593683]
[1747577166025,18.95012413,172.65,172.57,3.27593683]
[1747577166213,18.95012413,172.65,172.6,26.0]
[1747577167413,18.95012413,172.65,172.61,3.27593683]
[1747577169725,13.15803533,172.64,172.61,3.27593683]
[1747577169940,13.15803533,172.63,172.61,3.27593683]
[1747577170136,5.7920888,172.65,172.61,3.27593683]
[1747577170725,13.15803533,172.63,172.57,3.27593683]
[1747577172225,18.94976474,172.66,172.58,3.27593683]
[1747577173030,13.15803533,172.65,172.58,3.27593683]
[1747577173532,13.15803533,172.64,172.58,3.27593683]
[1747577174134,13.15803533,172.64,172.59,3.27593683]
[1747577174627,18.95077123,172.63,172.59,3.27593683]
[1747577176433,18.95144243,172.61,172.59,3.27593683]
[1747577176631,13.15803533,172.6,172.59,3.27593683]
[1747577177332,13.15803533,172.6,172.54,3.27593683]
[1747577177532,13.15803533,172.59,172.54,3.27593683]
[1747577177733,18.64964886,172.6,172.54,3.27593683]
[1747577177918,13.15803533,172.59,172.54,3.27593683]
[1747577178736,18.95233416,172.59,172.54,3.27593683]
[1747577178934,18.95233416,172.59,172.55,3.27593683]
[1747577180415,18.95233416,172.59,172.54,3.27593683]
[1747577181734,18.95233416,172.59,172.55,3.27593683]
[1747577181923,5.79429883,172.59,172.55,3.27593683]
[1747577182820,5.79429883,172.59,172.54,3.27593683]
[1747577183229,1.8024,172.64,172.54,54.37593683]
[1747577183541,24.44204923,172.64,172.57,26.0]
[1747577183942,5.79212316,172.65,172.57,26.0]
[1747577184110,5.79139398,172.67,172.57,26.0]
[1747577184536,5.79139398,172.67,172.58,29.27593683]
[1747577184921,18.94942931,172.67,172.58,29.27593683]
[1747577185546,5.79139398,172.67,172.58,29.27593683]
[1747577185758,13.15803533,172.65,172.58,29.27593683]
[1747577185925,13.15803533,172.65,172.59,3.27593683]
[1747577186449,5.79139398,172.67,172.59,3.27593683]
[1747577186621,18.94942931,172.67,172.59,3.27593683]
[1747577186823,5.79139398,172.67,172.59,3.27593683]
[1747577187058,18.94942931,172.67,172.59,3.27593683]
[1747577187223,18.94942931,172.67,172.58,26.0]
[1747577187835,13.15803533,172.66,172.6,3.2877161]
[1747577188853,5.79206487,172.65,172.6,3.2877161]
[1747577189869,5.79206487,172.65,172.61,3.2877161]
[1747577191063,5.79206487,172.65,172.62,3.2877161]
[1747577192047,5.79172941,172.66,172.62,3.2877161]
[1747577192249,18.94976474,172.66,172.58,26.0]
[1747577192440,5.79172941,172.66,172.58,26.0]
[1747577192748,5.79172941,172.66,172.62,13.16661693]
[1747577193768,18.95834634,172.66,172.62,13.16661693]
[1747577195768,5.79172941,172.66,172.62,13.16661693]
[1747577196149,18.95834634,172.66,172.62,13.16661693]
[1747577197576,18.95834634,172.66,172.61,13.16661693]
[1747577197947,18.95834634,172.66,172.62,13.16661693]
[1747577198347,18.95834634,172.66,172.62,16.45162321]
[1747577199371,18.95834634,172.66,172.62,13.16661693]
[1747577199573,13.16661693,172.65,172.58,26.0]
[1747577199744,13.16661693,172.64,172.6,13.16661693]
[1747577200247,33.43766986,172.66,172.61,13.16661693]
[1747577200442,13.16661693,172.62,172.58,13.16661693]
[1747577200679,18.64964886,172.65,172.61,3.28548312]
[1747577200845,5.79307148,172.62,172.61,3.28548312]
[1747577202040,5.79307148,172.62,172.58,13.16661693]
[1747577202649,5.79307148,172.62,172.59,13.16661693]
[1747577203050,5.79277736,172.63,172.6,13.16661693]
[1747577204869,5.79248271,172.64,172.6,13.16661693]
[1747577205079,5.79248271,172.64,172.61,13.16661693]
[1747577206161,5.79206487,172.65,172.61,13.16661693]
[1747577206872,18.9586818,172.65,172.6,13.16661693]
[1747577210247,18.9586818,172.65,172.61,3.28641835]
[1747577211074,5.79206487,172.65,172.61,16.45303528]
[1747577211275,5.79206487,172.65,172.63,13.16661693]
[1747577212073,5.79206487,172.65,172.62,13.16661693]
[1747577213262,5.79172941,172.66,172.63,13.16661693]
[1747577214786,5.79172941,172.66,172.57,26.0]
[1747577214993,5.79172941,172.66,172.63,13.16661693]
[1747577215285,5.7914804,172.67,172.64,13.16661693]
[1747577215876,5.79111561,172.68,172.65,13.16661693]
[1747577216064,5.79111561,172.68,172.66,13.16661693]
[1747577218479,18.95773254,172.68,172.64,13.16661693]
[1747577219701,18.95773254,172.68,172.62,13.16661693]
[1747577219702,13.16661693,172.67,172.62,13.16661693]
[1747577220402,13.16661693,172.67,172.63,13.16661693]
[1747577220773,13.16661693,172.67,172.63,16.45094897]
[1747577221778,5.79172941,172.66,172.63,16.45094897]
[1747577222000,5.79172941,172.66,172.63,13.16661693]
[1747577226306,5.79072326,172.69,172.65,13.16661693]
[1747577226509,5.79072326,172.69,172.66,13.16661693]
[1747577227888,5.79072326,172.69,172.62,1.7312]
[1747577228092,5.79072326,172.69,172.66,13.16661693]
[1747577231579,5.79038795,172.7,172.66,13.16661693]
[1747577232109,5.79038795,172.7,172.68,13.16661693]
[1747577232311,5.78938227,172.73,172.69,13.16661693]
[1747577233599,18.9559992,172.73,172.69,13.16661693]
[1747577233802,18.9559992,172.73,172.68,13.16661693]
[1747577235128,24.43869598,172.74,172.68,13.16661693]
[1747577235307,13.16661693,172.73,172.68,13.16661693]
[1747577235720,20.26166492,172.74,172.68,13.16661693]
[1747577235927,13.16661693,172.73,172.69,13.16661693]
[1747577236829,5.78971746,172.72,172.68,13.16661693]
[1747577237019,13.16661693,172.71,172.66,13.16661693]
[1747577237219,13.16661693,172.7,172.66,13.16661693]
[1747577237527,13.16661693,172.68,172.64,0.42050001]
[1747577237737,13.16661693,172.67,172.64,0.42050001]
[1747577238034,13.16661693,172.68,172.64,0.42050001]
[1747577238619,18.64964886,172.71,172.64,0.42050001]
[1747577238825,13.16661693,172.67,172.64,0.42050001]
[1747577239838,5.79139398,172.67,172.64,0.42050001]
[1747577240635,5.79139398,172.67,172.65,13.16661693]
[1747577240850,5.79139398,172.67,172.64,13.58711694]
[1747577241012,5.79115201,172.68,172.66,13.16661693]
[1747577241540,5.79038795,172.7,172.67,13.16661693]
[1747577241706,5.79038795,172.7,172.66,13.16661693]
[1747577243937,18.95700488,172.7,172.66,13.16661693]
[1747577244124,13.16661693,172.68,172.64,0.42050001]
[1747577245943,18.64964886,172.69,172.64,0.42050001]
[1747577246128,5.79139398,172.67,172.64,0.42050001]
[1747577247047,18.95801091,172.67,172.64,0.42050001]
[1747577247252,13.16661693,172.65,172.64,0.42050001]
[1747577247963,31.81626579,172.66,172.64,0.42050001]
[1747577248125,5.79206487,172.65,172.64,0.42050001]
[1747577251963,5.79139398,172.67,172.64,0.42050001]
[1747577252152,5.79139398,172.67,172.64,13.58711694]
[1747577252359,20.26904035,172.68,172.65,13.16661693]
[1747577253368,20.26904035,172.68,172.64,13.58711694]
[1747577253568,5.7910586,172.68,172.64,13.58711694]
[1747577254945,5.7910586,172.68,172.65,3.28530064]
[1747577255345,5.79072326,172.69,172.66,13.16661693]
[1747577255749,5.79072326,172.69,172.67,13.16661693]
[1747577256059,5.79072326,172.69,172.68,13.16661693]
[1747577257264,5.79072326,172.69,172.67,13.16661693]
[1747577257462,5.79005268,172.71,172.67,13.16661693]
[1747577257648,5.79005268,172.71,172.68,13.16661693]
[1747577258453,5.79005268,172.71,172.65,24.68]
[1747577258652,5.79005268,172.71,172.67,13.16661693]
[1747577259773,5.79005268,172.71,172.68,13.16661693]
[1747577259968,24.43970154,172.71,172.66,3.28564397]
[1747577260169,13.16661693,172.7,172.66,3.28564397]
[1747577260355,31.81626579,172.7,172.66,13.16661693]
[1747577260849,5.79005268,172.71,172.69,13.16661693]
[1747577261759,5.78938227,172.73,172.69,13.16661693]
[1747577261960,5.78938227,172.73,172.7,13.16661693]
[1747577262278,18.9559992,172.73,172.68,13.16661693]
[1747577265376,5.78938227,172.73,172.64,6.1817]
[1747577265671,18.9559992,172.73,172.68,13.16661693]
[1747577267249,5.78938227,172.73,172.68,13.16661693]
[1747577267455,18.9559992,172.73,172.68,13.16661693]
[1747577267671,5.78938227,172.73,172.69,13.16661693]
[1747577267877,18.9559992,172.73,172.68,13.16661693]
[1747577269071,13.16661693,172.72,172.67,13.16661693]
[1747577270380,5.79005268,172.71,172.67,13.16661693]
[1747577270581,13.16661693,172.7,172.65,13.16661693]
[1747577271481,18.95734019,172.69,172.64,13.16661693]
[1747577271783,18.95734019,172.69,172.65,3.28257145]
[1747577273787,18.95734019,172.69,172.64,13.16661693]
[1747577274085,18.95734019,172.69,172.65,13.16661693]
[1747577274279,5.79072326,172.69,172.65,13.16661693]
[1747577275788,5.79072326,172.69,172.63,26.0]
[1747577275789,13.16661693,172.67,172.62,13.16661693]
[1747577276664,13.16661693,172.67,172.63,3.28380695]
[1747577277085,5.79172941,172.66,172.63,3.28380695]
[1747577277775,5.79172941,172.66,172.63,16.45042388]
[1747577278292,5.79172941,172.66,172.63,13.16661693]
[1747577278982,5.79172941,172.66,172.64,13.16661693]
[1747577279788,5.79139398,172.67,172.64,13.16661693]
[1747577280695,5.79139398,172.67,172.6,54.02907084]
[1747577280913,5.79139398,172.67,172.64,13.16661693]
[1747577281527,14.46704785,172.81,172.69,26.0]
[1747577281800,5.78636731,172.82,172.8,13.16661693]
[1747577281985,5.78636731,172.82,172.81,13.16661693]
[1747577282680,5.78636731,172.82,172.8,13.16661693]
[1747577282881,5.78636731,172.82,172.79,13.16661693]
[1747577283683,13.16661693,172.8,172.75,13.16661693]
[1747577283896,13.16661693,172.79,172.74,37.70661693]
[1747577284393,18.64964886,172.81,172.7,7.9276]
[1747577284592,13.16661693,172.77,172.72,13.16661693]
[1747577284896,5.7880419,172.77,172.73,13.16661693]
[1747577286186,5.7880419,172.77,172.75,13.16661693]
[1747577286370,5.78737195,172.79,172.76,13.16661693]
[1747577286991,5.78737195,172.79,172.75,13.16661693]
[1747577287467,18.95398888,172.79,172.75,13.16661693]
[1747577287672,18.95398888,172.79,172.74,13.16661693]
[1747577288797,13.16661693,172.78,172.73,13.16661693]
[1747577288984,5.7880419,172.77,172.73,13.16661693]
[1747577289573,5.7880419,172.77,172.74,13.16661693]
[1747577289998,5.7880419,172.77,172.73,13.16661693]
[1747577291904,5.7880419,172.77,172.71,24.52]
[1747577292077,5.7880419,172.77,172.72,13.16661693]
[1747577292275,33.42476359,172.77,172.72,13.16661693]
[1747577292502,13.16661693,172.74,172.7,24.46]
[1747577292706,13.16661693,172.74,172.69,13.16661693]
[1747577293400,5.78871201,172.75,172.69,13.16661693]
[1747577293592,13.16661693,172.74,172.69,13.16661693]
[1747577295304,5.78938227,172.73,172.69,13.16661693]
[1747577295505,5.78938227,172.73,172.7,13.16661693]
[1747577296304,5.78871201,172.75,172.7,13.16661693]
[1747577296502,5.78871201,172.75,172.74,13.16661693]
[1747577296798,5.7880419,172.77,172.74,13.16661693]
[1747577297007,5.7880419,172.77,172.75,13.16661693]
[1747577297900,5.78770691,172.78,172.75,13.16661693]
[1747577298082,18.95432384,172.78,172.69,26.0]
[1747577298408,5.78770691,172.78,172.75,13.16661693]
[1747577298814,5.78770691,172.78,172.74,13.16661693]
[1747577299508,20.25931927,172.76,172.7,13.16661693]
[1747577299711,13.16661693,172.75,172.67,24.42]
[1747577299890,20.25931927,172.76,172.67,24.42]
[1747577299891,13.16661693,172.74,172.7,13.16661693]
[1747577300597,20.25931927,172.76,172.7,13.16661693]
[1747577300598,5.78938227,172.73,172.7,13.16661693]
[1747577301583,5.78896498,172.75,172.72,13.16661693]
[1747577301798,5.78896498,172.75,172.73,13.16661693]
[1747577302486,14.46889388,172.79,172.74,13.16661693]
[1747577302694,14.46889388,172.79,172.75,13.16661693]
[1747577303807,33.42288276,172.79,172.75,13.16661693]
[1747577304013,13.16661693,172.78,172.73,13.16661693]
[1747577304299,5.78737195,172.79,172.77,13.16661693]
[1747577304608,5.78670215,172.81,172.78,13.16661693]
[1747577304808,5.78670215,172.81,172.8,13.16661693]
[1747577305711,5.78603251,172.83,172.8,13.16661693]
[1747577306031,31.81626579,172.82,172.77,13.16661693]
[1747577306315,31.81626579,172.82,172.74,13.16661693]
[1747577306316,13.16661693,172.79,172.74,13.16661693]
[1747577306883,31.81626579,172.78,172.73,13.16661693]
[1747577307312,18.64964886,172.82,172.76,13.16661693]
[1747577307503,31.81626579,172.82,172.76,13.16661693]
[1747577307900,18.64964886,172.8,172.76,13.16661693]
[1747577308715,18.64964886,172.8,172.77,13.16661693]
[1747577308915,18.64964886,172.8,172.71,37.54661693]
[1747577309116,18.64964886,172.8,172.75,13.16661693]
[1747577309622,31.81626579,172.8,172.75,13.16661693]
[1747577309803,5.78770691,172.78,172.74,13.16661693]
[1747577310318,5.78770691,172.78,172.75,13.16661693]
[1747577311531,5.78770691,172.78,172.76,13.16661693]
[1747577311701,5.78770691,172.78,172.77,13.16661693]
[1747577312029,20.25345754,172.81,172.77,13.16661693]
[1747577312210,33.42007447,172.81,172.71,13.16661693]
[1747577312517,33.42007447,172.81,172.76,13.16661693]
[1747577313113,33.42007447,172.81,172.75,13.16661693]
[1747577313433,5.78737195,172.79,172.75,13.16661693]
[1747577314193,5.78737195,172.79,172.78,13.16661693]
[1747577315310,52.06737959,172.83,172.78,13.16661693]
[1747577315490,52.06737959,172.83,172.77,13.16661693]
[1747577316495,13.16661693,172.82,172.77,13.16661693]
[1747577316695,52.06737959,172.83,172.77,13.16661693]
[1747577317017,38.90076266,172.83,172.78,13.16661693]
[1747577317225,52.06737959,172.83,172.78,13.16661693]
[1747577317596,33.41773073,172.83,172.78,13.16661693]
[1747577317796,5.78603251,172.83,172.8,13.16661693]
[1747577318716,31.81626579,172.85,172.8,13.16661693]
[1747577318717,5.78569775,172.84,172.8,13.16661693]
[1747577319300,18.95231468,172.84,172.79,13.16661693]
[1747577319537,18.95231468,172.84,172.79,37.46661693]
[1747577320526,5.78569775,172.84,172.79,37.46661693]
[1747577320724,18.95231468,172.84,172.79,37.46661693]
[1747577320914,5.78569775,172.84,172.8,13.16661693]
[1747577321510,18.95231468,172.84,172.79,13.0145867]
[1747577321828,5.78569775,172.84,172.8,13.16661693]
[1747577325134,27.62961505,172.86,172.8,13.16661693]
[1747577325135,5.78536303,172.85,172.8,13.16661693]
[1747577325639,18.95197996,172.85,172.8,13.16661693]
[1747577325810,13.16661693,172.84,172.79,13.16661693]
[1747577327437,5.78603251,172.83,172.79,13.16661693]
[1747577327634,20.2511138,172.83,172.79,13.16661693]
[1747577327825,33.41773073,172.83,172.78,37.44661693]
[1747577328136,33.41773073,172.83,172.78,13.16661693]
[1747577329025,5.78603251,172.83,172.8,13.16661693]
[1747577330242,5.78569775,172.84,172.8,13.16661693]
[1747577330432,33.41655906,172.84,172.79,13.16661693]
[1747577331133,13.16661693,172.82,172.77,13.16661693]
[1747577331840,13.16661693,172.8,172.75,13.16661693]
[1747577332227,5.78737195,172.79,172.75,13.16661693]
[1747577335127,13.16661693,172.78,172.73,1.7788]
[1747577335332,33.42241876,172.79,172.74,13.16661693]
[1747577335637,33.42241876,172.79,172.75,13.16661693]
[1747577336844,13.16661693,172.8,172.75,13.16661693]
[1747577339262,5.78737195,172.79,172.76,13.16661693]
[1747577340330,13.16661693,172.79,172.74,13.16661693]
[1747577341966,5.78770691,172.78,172.74,13.16661693]
[1747577342252,5.78770691,172.78,172.75,13.16661693]
[1747577342447,5.78770691,172.78,172.74,13.16661693]
[1747577342834,5.78770691,172.78,172.75,13.16661693]
[1747577343028,5.78770691,172.78,172.76,13.16661693]
[1747577344057,5.78737195,172.79,172.75,13.16661693]
[1747577344243,20.25580183,172.79,172.75,13.16661693]
[1747577344538,33.42241876,172.79,172.74,13.16661693]
[1747577345052,20.25580183,172.79,172.73,1.7788]
[1747577345248,20.25580183,172.79,172.75,13.16661693]
[1747577346360,20.25580183,172.79,172.73,1.7788]
[1747577346361,13.16661693,172.77,172.7,26.0]
[1747577346539,13.16661693,172.77,172.72,13.16661693]
[1747577347058,13.16661693,172.77,172.73,3.27749834]
[1747577347259,13.16661693,172.76,172.73,3.27749834]
[1747577348154,5.78871201,172.75,172.73,3.27749834]
[1747577348363,5.78871201,172.75,172.72,13.16661693]
[1747577348666,5.78871201,172.75,172.73,13.16661693]
[1747577348843,5.78871201,172.75,172.72,13.16661693]
[1747577349152,5.78871201,172.75,172.74,13.16661693]
[1747577349561,5.78871201,172.75,172.74,16.4434343]
[1747577350257,5.78737195,172.79,172.74,16.4434343]
[1747577350454,18.95398888,172.79,172.74,16.4434343]
[1747577351564,33.42241876,172.79,172.74,16.4434343]
[1747577352035,20.25580183,172.79,172.74,16.4434343]
[1747577352238,33.42241876,172.79,172.74,16.4434343]
[1747577352563,33.42241876,172.79,172.74,13.16661693]
[1747577353065,20.25580183,172.79,172.74,13.16661693]
[1747577353460,33.42241876,172.79,172.74,13.16661693]
[1747577353953,20.25580183,172.79,172.75,13.16661693]
[1747577355137,33.42241876,172.79,172.75,13.16661693]
[1747577356340,33.42241876,172.79,172.74,13.16661693]
[1747577356871,33.42241876,172.79,172.75,13.16661693]
[1747577357378,20.25580183,172.79,172.75,13.16661693]
[1747577357557,5.78737195,172.79,172.77,13.16661693]
[1747577357760,5.78737195,172.79,172.78,13.16661693]
[1747577358577,5.78670215,172.81,172.78,13.16661693]
[1747577358759,5.78670215,172.81,172.77,13.16661693]
[1747577358952,5.78670215,172.81,172.78,13.16661693]
[1747577359869,5.78569775,172.84,172.8,13.16661693]
[1747577360075,5.78569775,172.84,172.81,13.16661693]
[1747577360577,18.95131063,172.87,172.82,13.16661693]
[1747577360755,18.95131063,172.87,172.83,13.16661693]
[1747577361273,31.81626579,172.86,172.78,1.6427]
[1747577361451,20.24642795,172.87,172.75,26.0]
[1747577361452,13.16661693,172.82,172.75,26.0]
[1747577361647,49.16989645,172.87,172.78,1.6427]
[1747577361874,49.16989645,172.87,172.82,13.16661693]
[1747577361875,18.64964886,172.86,172.82,13.16661693]
[1747577362772,33.41538753,172.85,172.78,1.6427]
[1747577363078,33.41538753,172.85,172.79,13.16661693]
[1747577363780,20.2487706,172.85,172.81,13.16661693]
[1747577363988,20.2487706,172.85,172.82,13.16661693]
[1747577364654,20.2487706,172.85,172.78,1.6427]
[1747577364850,20.2487706,172.85,172.82,13.16661693]
[1747577366058,20.2487706,172.85,172.81,13.16661693]
[1747577366574,5.78536303,172.85,172.84,13.16661693]
[1747577366778,5.78502834,172.86,172.81,23.96]
[1747577366983,5.78502834,172.86,172.83,13.16661693]
[1747577367480,5.78502834,172.86,172.82,13.16661693]
[1747577369282,5.78502834,172.86,172.84,13.16661693]
[1747577369771,5.78502834,172.86,172.83,13.16661693]
[1747577369976,5.78502834,172.86,172.81,23.96]
[1747577370280,5.78502834,172.86,172.83,13.16661693]
[1747577370783,5.78502834,172.86,172.82,13.16661693]
[1747577371489,33.41421613,172.86,172.81,23.96]
[1747577371672,13.16661693,172.85,172.8,37.08661693]
[1747577372164,13.16661693,172.84,172.78,1.6427]
[1747577372369,13.16661693,172.82,172.77,37.08661693]
[1747577372583,18.64964886,172.85,172.77,37.08661693]
[1747577372783,13.16661693,172.83,172.78,13.16661693]
[1747577372963,46.2475992,172.86,172.8,13.16661693]
[1747577373165,13.16661693,172.85,172.8,13.16661693]
[1747577373488,5.78569775,172.84,172.8,13.16661693]
[1747577374584,18.95231468,172.84,172.79,13.16661693]
[1747577374888,5.78569775,172.84,172.8,13.16661693]
[1747577375388,18.95197996,172.85,172.8,13.16661693]
[1747577375775,33.41538753,172.85,172.8,13.16661693]
[1747577375975,33.41538753,172.85,172.77,23.92]
[1747577376276,33.41538753,172.85,172.8,13.16661693]
[1747577378395,33.41538753,172.85,172.77,23.92]
[1747577378696,33.41538753,172.85,172.8,13.16661693]
[1747577379490,20.2487706,172.85,172.8,13.16661693]
[1747577379700,13.16661693,172.84,172.79,13.16661693]
[1747577379870,13.16661693,172.84,172.77,23.92]
[1747577380066,13.16661693,172.83,172.78,13.16661693]
[1747577380483,5.78636731,172.82,172.78,13.16661693]
[1747577381974,5.78636731,172.82,172.79,13.16661693]
[1747577382897,18.64964886,172.84,172.79,13.16661693]
[1747577383298,18.64964886,172.84,172.8,13.16661693]
[1747577383525,20.2475992,172.86,172.81,13.16661693]
[1747577383811,20.2475992,172.86,172.83,13.16661693]
[1747577383986,20.2475992,172.86,172.85,13.16661693]
[1747577384305,5.78502834,172.86,172.85,13.16661693]
[1747577384995,14.4604545,172.89,172.85,13.16661693]
[1747577385305,14.4604545,172.89,172.87,13.16661693]
[1747577385489,14.4604545,172.89,172.86,13.16661693]